[Event "18th Charleroi Open-A 2019"]
[Site "Charleroi"]
[Date "2019.07.29"]
[Round "3.21"]
[White "Roos, David"]
[Black "Butzen, Robin"]
[Result "1/2-1/2"]
[ECO "B13"]
[WhiteElo "2114"]
[BlackElo "1967"]
[Annotator "NA"]
[PlyCount "84"]
[EventDate "2019.07.22"]
[EventType "swiss"]
[EventCountry "BEL"]
[SourceTitle "playchess.com"]
[Source "ChessBase"]
[SourceQuality "1"]
[TimeControl "40/5400+30:1800+30"]

1. d4 {[%emt 1:30:30]} d5 {[%emt 1:30:30]} 2. Nc3 {[%emt 0:00:30]} c5 {[%emt 0:00:30]} 3. Bf4 {[%emt 0:00:30]} Nc6 {[%emt 0:00:30]} 4. e3 {[%emt 0:00:30]} cxd4 {[%emt 0:00:30]} 5. exd4 {[%emt 0:00:30]} Bf5 {[%emt 0:00:30]} 6. Bd3 {[%emt 0:00:30]} Bxd3 {[%emt 0:00:30]} 7. Qxd3 {[%emt 0:00:30]} Nf6 {[%emt 0:00:30]} 8. Nf3 {[%emt 0:00:30]} e6 {[%emt 0:00:30]} 9. O-O {[%emt 0:00:30]} Be7 {[%emt 0:00:30]} 10. Rfe1 {[%emt 0:00:30]} O-O {[%emt 0:00:30]} 11. Ne5 {[%emt 0:00:30]} Rc8 {[%emt 0:00:30]} 12. a3 {[%emt 0:00:30]} Nd7 {[%emt 0:00:30]} 13. Re3 {[%emt 0:00:30]} Ncxe5 {[%emt 0:00:30]} 14. Bxe5 {[%emt 0:00:30]} Nxe5 {[%emt 0:00:30]} 15. dxe5 Qb6 {[%emt 0:00:30]} 16. Rh3 {[%emt 0:01:00]} g6 {[%emt 0:00:30]} 17. Qd2 {[%emt 0:00:30]} f5 {[%emt 0:00:30]} 18. b4 {[%emt 0:00:30]} a5 {[%emt 0:00:30]} 19. Rb1 {[%emt 0:00:30]} axb4 {[%emt 0:00:30]} 20. Na2 Qc7 {[%emt 0:00:30]} 21. c3 {[%emt 0:01:00]} bxa3 {[%emt 0:00:30]} 22. f4 {[%emt 0:00:30]} Qc4 23. Rf3 {[%emt 0:00:30]} b5 {[%emt 0:01:00]} 24. Rd3 {[%emt 0:00:30]} Rfd8 {[%emt 0:00:30]} 25. h3 {[%emt 0:00:30]} Rb8 {[%emt 0:00:30]} 26. Kh2 {[%emt 0:00:30]} Bc5 {[%emt 0:00:30]} 27. g4 {[%emt 0:00:30]} fxg4 {[%emt 0:00:30]} 28. hxg4 g5 {[%emt 0:00:30]} 29. Rf1 {[%emt 0:01:00]} Rf8 {[%emt 0:00:30]} 30. f5 {[%emt 0:00:30]} Qxg4 {[%emt 0:00:30]} 31. Rg3 {[%emt 0:00:30]} Qh4+ {[%emt 0:00:30]} 32. Rh3 {[%emt 0:00:30]} Qg4 {[%emt 0:00:30]} 33. Rg3 {[%emt 0:00:30]} Qh5+ {[%emt 0:00:30]} 34. Kg2 {[%emt 0:00:30]} Qh4 {[%emt 0:00:30]} 35. f6 {[%emt 0:00:30]} Kf7 {[%emt 0:00:30]} 36. Re1 {[%emt 0:00:30]} Rg8 {[%emt 0:00:30]} 37. Qd3 {[%emt 0:00:30]} Rh8 {[%emt 0:00:30]} 38. Nb4 {[%emt 0:00:30]} Bxb4 {[%emt 0:00:30]} 39. cxb4 {[%emt 0:00:30]} Qxb4 {[%emt 0:00:30]} 40. Qf3 {[%emt 0:00:30]} g4 {[%emt 0:00:30]} 41. Rxg4 {[%emt 0:30:30]} Qxe1 {[%emt 0:30:30]} 42. Rg7+ {[%emt 0:00:30]} Ke8 {[%emt 0:00:30]} 1/2-1/2

[Event "18th Charleroi Open-A 2019"]
[Site "Charleroi"]
[Date "2019.07.29"]
[Round "3.22"]
[White "Partoens, Remi"]
[Black "Soyunlu, Narmin"]
[Result "0-1"]
[ECO "C95"]
[WhiteElo "1957"]
[BlackElo "2099"]
[Annotator "NA"]
[PlyCount "79"]
[EventDate "2019.07.22"]
[EventType "swiss"]
[EventCountry "BEL"]
[SourceTitle "playchess.com"]
[Source "ChessBase"]
[SourceQuality "1"]
[TimeControl "40/5400+30:1800+30"]

1. e4 {[%emt 0:00:00]} e5 {[%emt 1:30:30]} 2. Nf3 {[%emt 0:00:00]} Nc6 {[%emt 0:00:00]} 3. Bb5 {[%emt 1:31:30]} a6 {[%emt 0:00:00]} 4. Ba4 {[%emt 0:00:00]} Nf6 {[%emt 0:01:30]} 5. O-O {[%emt 0:01:00]} Be7 {[%emt 0:00:00]} 6. Re1 {[%emt 0:00:30]} b5 {[%emt 0:00:00]} 7. Bb3 {[%emt 0:00:00]} d6 {[%emt 0:00:00]} 8. c3 {[%emt 0:01:00]} O-O {[%emt 0:02:00]} 9. h3 {[%emt 0:00:30]} Nb8 {[%emt 0:00:30]} 10. d4 {[%emt 0:00:00]} Nbd7 {[%emt 0:00:00]} 11. Nbd2 {[%emt 0:01:00]} Bb7 {[%emt 0:00:00]} 12. Bc2 {[%emt 0:00:30]} Re8 {[%emt 0:01:30]} 13. Nf1 {[%emt 0:00:30]} Bf8 {[%emt 0:00:00]} 14. Ng3 {[%emt 0:00:00]} g6 {[%emt 0:00:00]} 15. Bg5 {[%emt 0:01:00]} h6 {[%emt 0:00:00]} 16. Bd2 {[%emt 0:00:30]} d5 {[%emt 0:02:00]} 17. Qc1 {[%emt 0:00:30]} dxe4 {[%emt 0:00:00]} 18. Nxe5 Nxe5 {[%emt 0:01:00]} 19. dxe5 {[%emt 0:01:00]} e3 {[%emt 0:00:30]} 20. Rxe3 {[%emt 0:00:30]} Qd5 {[%emt 0:00:30]} 21. Ne4 {[%emt 0:00:30]} Qxe5 {[%emt 0:00:30]} 22. Nxf6+ {[%emt 0:00:30]} Qxf6 {[%emt 0:00:30]} 23. Qf1 {[%emt 0:00:30]} Bc5 {[%emt 0:00:30]} 24. Rxe8+ {[%emt 0:00:00]} Rxe8 {[%emt 0:00:30]} 25. Re1 {[%emt 0:01:00]} Rxe1 {[%emt 0:00:30]} 26. Qxe1 {[%emt 0:00:30]} Qc6 {[%emt 0:00:00]} 27. Qf1 {[%emt 0:00:30]} Qd5 {[%emt 0:01:00]} 28. Bxh6 {[%emt 0:00:00]} Qxa2 {[%emt 0:00:00]} 29. Bd2 {[%emt 0:00:00]} Qd5 30. Bh6 Qa2 {[%emt 0:01:30]} 31. Qe2 {[%emt 0:02:00]} Bc6 {[%emt 0:00:30]} 32. b4 {[%emt 0:00:30]} Bd6 {[%emt 0:00:30]} 33. Qd3 {[%emt 0:00:30]} Qe6 {[%emt 0:00:30]} 34. Qe3 {[%emt 0:00:30]} Qd5 {[%emt 0:00:00]} 35. Qe2 {[%emt 0:00:00]} Qa2 36. Qd3 Qe6 37. Qe3 Qd5 38. f3 {[%emt 0:00:00]} Kh7 {[%emt 0:01:25]} 39. Bg5 {[%emt 0:00:00]} Qa2 40. Qd3 {[%emt 0:02:28]} 0-1

[Event "18th Charleroi Open-A 2019"]
[Site "Charleroi"]
[Date "2019.07.29"]
[Round "3.23"]
[White "Ghyselen, Wouter"]
[Black "Barbier, Astrid"]
[Result "1-0"]
[ECO "A85"]
[WhiteElo "2078"]
[BlackElo "1941"]
[Annotator "NA"]
[PlyCount "61"]
[EventDate "2019.07.22"]
[EventType "swiss"]
[EventCountry "BEL"]
[SourceTitle "playchess.com"]
[Source "ChessBase"]
[SourceQuality "1"]
[TimeControl "40/5400+30:1800+30"]

1. d4 {[%emt 0:00:00]} f5 {[%emt 0:00:00]} 2. c4 {[%emt 0:00:00]} Nf6 {[%emt 0:00:00]} 3. Nc3 {[%emt 0:00:14]} g6 {[%emt 0:00:00]} 4. h4 {[%emt 0:00:36]} Bg7 {[%emt 0:02:06]} 5. h5 {[%emt 0:00:26]} Nxh5 {[%emt 0:17:24]} 6. e4 {[%emt 0:05:57]} O-O {[%emt 0:08:09]} 7. exf5 {[%emt 0:06:59]} d6 {[%emt 0:04:09]} 8. Be2 {[%emt 0:12:29]} Nf6 {[%emt 0:02:05]} 9. fxg6 {[%emt 0:00:34]} hxg6 {[%emt 0:00:53]} 10. Nf3 {[%emt 0:02:38]} Ng4 {[%emt 0:12:37]} 11. Qb3 {[%emt 0:17:03]} c6 {[%emt 0:06:58]} 12. Bg5 {[%emt 0:10:34]} Qc7 {[%emt 0:03:31]} 13. c5+ {[%emt 0:06:32]} d5 {[%emt 0:00:51]} 14. Nxd5 {[%emt 0:00:10]} cxd5 {[%emt 0:01:05]} 15. Qxd5+ {[%emt 0:00:06]} e6 {[%emt 0:06:06]} 16. Qe4 {[%emt 0:01:02]} Nf6 {[%emt 0:00:48]} 17. Qxg6 {[%emt 0:00:49]} Qf7 {[%emt 0:01:17]} 18. Qc2 {[%emt 0:03:54]} Rd8 {[%emt 0:01:44]} 19. Ne5 {[%emt 0:06:34]} Qc7 {[%emt 0:04:02]} 20. Qg6 {[%emt 0:01:23]} Qe7 {[%emt 0:03:18]} 21. Rh6 {[%emt 0:09:31]} Rf8 {[%emt 0:04:40]} 22. Ng4 {[%emt 0:05:32]} Nbd7 {[%emt 0:02:02]} 23. O-O-O {[%emt 0:00:43]} Qf7 {[%emt 0:08:24]} 24. Rh8+ {[%emt 0:05:24]} Kxh8 {[%emt 0:00:10]} 25. Rh1+ {[%emt 0:00:04]} Bh6 {[%emt 0:00:58]} 26. Qxh6+ {[%emt 0:00:40]} Nh7 {[%emt 0:00:37]} 27. Bd3 {[%emt 0:00:14]} Re8 {[%emt 0:03:52]} 28. Qxh7+ {[%emt 0:00:15]} Qxh7 {[%emt 0:00:10]} 29. Rxh7+ {[%emt 0:00:04]} Kg8 {[%emt 0:00:09]} 30. Nh6+ {[%emt 0:00:05]} Kf8 {[%emt 0:00:06]} 31. Rf7# {[%emt 0:00:35]} 1-0

[Event "18th Charleroi Open-A 2019"]
[Site "Charleroi"]
[Date "2019.07.29"]
[Round "3.24"]
[White "Moerman, Thomas"]
[Black "Iolis, Oleg"]
[Result "0-1"]
[ECO "D85"]
[WhiteElo "1931"]
[BlackElo "2178"]
[Annotator "ChessBase"]
[PlyCount "66"]
[EventDate "2019.07.22"]
[EventType "swiss"]
[EventCountry "BEL"]
[SourceTitle "playchess.com"]
[Source "ChessBase"]
[SourceQuality "1"]
[TimeControl "40/5400+30:1800+30"]

1. d4 {[%emt 0:00:41]} Nf6 {[%emt 0:00:00]} 2. c4 {[%emt 0:00:09]} g6 {[%emt 0:00:00]} 3. Nc3 {[%emt 0:00:32]} d5 {[%emt 0:00:00]} 4. cxd5 {[%emt 0:00:41]} Nxd5 {[%emt 0:00:00]} 5. e4 {[%emt 0:00:36]} Nxc3 {[%emt 0:00:00]} 6. bxc3 {[%emt 0:00:05]} Bg7 {[%emt 0:00:00]} 7. Be3 {[%emt 0:02:00]} c5 {[%emt 0:00:16]} 8. Nf3 {[%emt 0:00:43]} Nc6 {[%emt 0:01:41]} 9. Qd2 {[%emt 0:01:12]} Bg4 {[%emt 0:11:13]} 10. d5 {[%emt 0:02:38]} Qa5 {[%emt 0:05:10]} 11. Rc1 {[%emt 0:02:21]} Bxf3 {[%emt 0:04:57]} 12. gxf3 {[%emt 0:01:45]} Rd8 {[%emt 0:00:16]} 13. f4 {[%emt 0:08:07]} e6 {[%emt 0:06:47]} 14. d6 {[%emt 0:27:21]} e5 {[%emt 0:05:03]} 15. Qd5 {[%emt 0:06:26]} exf4 {[%emt 0:05:53]} 16. Bc4 {[%emt 0:02:12]} Bxc3+ {[%emt 0:11:42]} 17. Kf1 {[%emt 0:00:35]} Ne5 {[%emt 0:10:42]} 18. Bxf4 {[%emt 0:07:35]} Nxc4 {[%emt 0:02:01]} 19. Qxc4 {[%emt 0:00:35]} Bd4 {[%emt 0:01:07]} 20. e5 {[%emt 0:02:38]} O-O {[%emt 0:00:28]} 21. h4 {[%emt 0:05:03]} Rfe8 {[%emt 0:03:49]} 22. h5 {[%emt 0:05:57]} Bxe5 {[%emt 0:02:17]} 23. hxg6 {[%emt 0:00:36]} hxg6 {[%emt 0:00:09]} 24. Bxe5 {[%emt 0:01:42]} Rxe5 {[%emt 0:00:11]} 25. Qf4 {[%emt 0:00:14]} Qa6+ {[%emt 0:04:27]} 26. Kg1 {[%emt 0:02:16]} Qxd6 {[%emt 0:00:14]} 27. Qh6 {[%emt 0:02:14]} Qf6 {[%emt 0:02:21]} 28. Kf1 {[%emt 0:03:32]} Qg7 {[%emt 0:01:48]} 29. Qh4 {[%emt 0:00:28]} Rde8 {[%emt 0:02:28]} 30. Qg4 Qf6 {[%emt 0:01:06]} 31. Rh3 {[%emt 0:01:54]} Rg5 {[%emt 0:01:42]} 32. Qh4 {[%emt 0:00:13]} Qa6+ {[%emt 0:00:10]} 33. Rc4 {[%emt 0:00:14]} Rh5 {[%emt 0:00:13]} 0-1

[Event "18th Charleroi Open-A 2019"]
[Site "Charleroi"]
[Date "2019.07.29"]
[Round "3.25"]
[White "Damlakhi, Mahmoud"]
[Black "Duhayon, Yves"]
[Result "1/2-1/2"]
[ECO "D31"]
[WhiteElo "2008"]
[BlackElo "2132"]
[Annotator "NA"]
[PlyCount "160"]
[EventDate "2019.07.22"]
[EventType "swiss"]
[EventCountry "BEL"]
[SourceTitle "playchess.com"]
[Source "ChessBase"]
[SourceQuality "1"]
[TimeControl "40/5400+30:1800+30"]

1. d4 {[%emt 0:03:34]} d5 {[%emt 0:00:00]} 2. c4 {[%emt 0:00:14]} e6 {[%emt 0:00:00]} 3. Nc3 {[%emt 0:00:04]} a6 {[%emt 0:00:14]} 4. cxd5 {[%emt 0:00:06]} exd5 {[%emt 0:00:06]} 5. Bf4 {[%emt 0:00:51]} Nf6 {[%emt 0:00:10]} 6. e3 {[%emt 0:00:05]} Bd6 {[%emt 0:00:13]} 7. Bxd6 {[%emt 0:02:42]} Qxd6 {[%emt 0:00:05]} 8. Bd3 {[%emt 0:00:50]} O-O {[%emt 0:06:09]} 9. Nge2 {[%emt 0:05:54]} Re8 {[%emt 0:07:19]} 10. h3 {[%emt 0:06:47]} Nbd7 {[%emt 0:22:37]} 11. O-O {[%emt 0:02:40]} Nf8 {[%emt 0:02:36]} 12. Nf4 {[%emt 0:03:14]} Ne6 {[%emt 0:05:53]} 13. Nh5 {[%emt 0:00:57]} Nd7 {[%emt 0:08:24]} 14. Qg4 {[%emt 0:21:40]} g6 {[%emt 0:07:34]} 15. e4 {[%emt 0:12:19]} Kh8 {[%emt 0:04:01]} 16. e5 {[%emt 0:01:03]} Qf8 {[%emt 0:04:22]} 17. Nf4 {[%emt 0:08:11]} Nxf4 {[%emt 0:12:18]} 18. Qxf4 {[%emt 0:00:05]} c6 {[%emt 0:00:03]} 19. Qh4 {[%emt 0:01:52]} Qe7 {[%emt 0:02:47]} 20. Qh6 {[%emt 0:03:31]} Qf8 {[%emt 0:04:58]} 21. Qe3 {[%emt 0:00:16]} f5 {[%emt 0:02:26]} 22. Ne2 {[%emt 0:02:17]} Qe7 {[%emt 0:01:07]} 23. Nf4 {[%emt 0:08:19]} Nf8 {[%emt 0:00:08]} 24. Rab1 {[%emt 0:00:48]} a5 {[%emt 0:00:43]} 25. g3 {[%emt 0:00:37]} Ne6 {[%emt 0:00:15]} 26. h4 {[%emt 0:01:26]} Nxf4 {[%emt 0:02:45]} 27. Qxf4 {[%emt 0:00:03]} Be6 {[%emt 0:00:09]} 28. Kg2 {[%emt 0:00:49]} Kg7 {[%emt 0:01:42]} 29. a3 {[%emt 0:01:00]} h6 {[%emt 0:01:19]} 30. Qd2 {[%emt 0:00:52]} Rf8 {[%emt 0:00:39]} 31. f4 {[%emt 0:00:39]} h5 {[%emt 0:00:53]} 32. b4 {[%emt 0:01:15]} axb4 {[%emt 0:00:07]} 33. axb4 {[%emt 0:00:09]} b5 {[%emt 0:01:15]} 34. Ra1 {[%emt 0:01:29]} Qb7 {[%emt 0:01:22]} 35. Qc3 {[%emt 0:00:48]} Qb6 {[%emt 0:00:37]} 36. Ra5 {[%emt 0:01:15]} Ra6 {[%emt 0:01:56]} 37. Rxa6 {[%emt 0:02:18]} Qxa6 {[%emt 0:00:01]} 38. Ra1 {[%emt 0:00:02]} Qb6 {[%emt 0:00:11]} 39. Kf3 {[%emt 0:02:56]} Rc8 {[%emt 0:00:45]} 40. Ke3 {[%emt 0:01:30]} Kf7 {[%emt 0:00:09]} 41. Ra5 {[%emt 0:30:20]} Rc7 {[%emt 0:30:36]} 42. Qa3 {[%emt 0:01:08]} Bc8 {[%emt 0:00:29]} 43. Qc3 {[%emt 0:02:37]} Bd7 {[%emt 0:00:51]} 44. Bc2 {[%emt 0:00:00]} Ke7 {[%emt 0:00:00]} 45. Qa3 {[%emt 0:00:00]} Bc8 {[%emt 0:00:00]} 46. Kd3 {[%emt 0:00:00]} Kd7 {[%emt 0:00:00]} 47. Qa1 {[%emt 0:00:00]} Ke6 {[%emt 0:00:00]} 48. Bb3 {[%emt 0:00:00]} Ke7 {[%emt 0:00:00]} 49. Qa2 {[%emt 0:00:00]} Ke6 {[%emt 0:00:00]} 50. Ra8 {[%emt 0:00:00]} Ke7 {[%emt 0:00:00]} 51. Ra5 {[%emt 0:00:00]} Ke6 {[%emt 0:00:00]} 52. Bd1 {[%emt 0:00:00]} Ke7 {[%emt 0:00:00]} 53. Bf3 {[%emt 0:00:00]} Ke6 {[%emt 0:00:00]} 54. Qa1 {[%emt 0:00:00]} Ke7 {[%emt 0:00:00]} 55. Qd1 {[%emt 0:00:00]} Ra7 {[%emt 0:00:00]} 56. Qa1 {[%emt 0:00:00]} Rc7 {[%emt 0:00:00]} 57. Qc3 {[%emt 0:00:00]} Bd7 {[%emt 0:00:00]} 58. Qa3 {[%emt 0:00:00]} Bc8 {[%emt 0:00:00]} 59. Ra8 {[%emt 0:00:00]} Ke6 {[%emt 0:00:00]} 60. Be2 {[%emt 0:00:02]} Ke7 {[%emt 0:00:00]} 61. Qc3 {[%emt 0:00:05]} Ke6 {[%emt 0:00:00]} 62. Qc5 {[%emt 0:00:22]} Qxc5 {[%emt 0:00:00]} 63. bxc5 {[%emt 0:01:16]} Bb7 {[%emt 0:04:19]} 64. Rh8 {[%emt 0:00:55]} Rg7 {[%emt 0:02:18]} 65. Kc3 {[%emt 0:01:01]} Kd7 {[%emt 0:00:41]} 66. Kb4 {[%emt 0:00:08]} Kc7 {[%emt 0:00:10]} 67. Ka5 {[%emt 0:00:16]} Bc8 {[%emt 0:00:37]} 68. Rf8 {[%emt 0:02:05]} Kb7 {[%emt 0:01:42]} 69. Rf6 {[%emt 0:01:41]} Bd7 {[%emt 0:03:41]} 70. Bd3 {[%emt 0:03:21]} Be8 {[%emt 0:00:21]} 71. Rd6 {[%emt 0:02:05]} Re7 {[%emt 0:00:45]} 72. Rf6 {[%emt 0:01:15]} Bf7 {[%emt 0:00:14]} 73. Be2 {[%emt 0:00:46]} Be8 {[%emt 0:00:06]} 74. Bf3 {[%emt 0:00:35]} Bf7 {[%emt 0:00:09]} 75. e6 {[%emt 0:00:23]} Be8 {[%emt 0:00:41]} 76. Be2 {[%emt 0:00:34]} Kb8 {[%emt 0:00:31]} 77. Kb6 {[%emt 0:01:20]} Rb7+ {[%emt 0:00:09]} 78. Ka5 {[%emt 0:00:29]} Ra7+ {[%emt 0:00:07]} 79. Kb6 {[%emt 0:00:33]} Rb7+ {[%emt 0:00:11]} 80. Ka5 {[%emt 0:00:32]} Ra7+ {[%emt 0:00:01]} 1/2-1/2

[Event "18th Charleroi Open-A 2019"]
[Site "Charleroi"]
[Date "2019.07.29"]
[Round "3.26"]
[White "Denivet, Axel"]
[Black "Roger, Mehdi"]
[Result "0-1"]
[ECO "B76"]
[WhiteElo "1932"]
[BlackElo "2125"]
[Annotator "NA"]
[PlyCount "52"]
[EventDate "2019.07.22"]
[EventType "swiss"]
[EventCountry "BEL"]
[SourceTitle "playchess.com"]
[Source "ChessBase"]
[SourceQuality "1"]
[TimeControl "40/5400+30:1800+30"]

1. e4 {[%emt 0:00:00]} c5 {[%emt 0:00:43]} 2. Nf3 {[%emt 0:00:00]} d6 {[%emt 0:00:35]} 3. d4 {[%emt 0:00:00]} cxd4 {[%emt 0:00:04]} 4. Nxd4 {[%emt 0:00:00]} Nf6 {[%emt 0:00:06]} 5. Nc3 {[%emt 0:00:04]} g6 {[%emt 0:00:47]} 6. Be3 {[%emt 0:00:44]} Bg7 {[%emt 0:00:11]} 7. f3 {[%emt 0:00:21]} O-O {[%emt 0:00:29]} 8. Qd2 {[%emt 0:00:11]} Nc6 {[%emt 0:00:18]} 9. O-O-O {[%emt 0:00:20]} d5 {[%emt 0:00:51]} 10. Nxc6 {[%emt 0:04:21]} bxc6 {[%emt 0:00:05]} 11. Bh6 {[%emt 0:02:49]} Bxh6 {[%emt 0:05:03]} 12. Qxh6 {[%emt 0:00:09]} Rb8 {[%emt 0:05:17]} 13. e5 {[%emt 0:06:09]} Nd7 {[%emt 0:04:59]} 14. Rd4 {[%emt 0:07:57]} Re8 {[%emt 1:17:32]} 15. h4 {[%emt 0:13:31]} Qb6 {[%emt 0:00:00]} 16. h5 {[%emt 0:04:20]} Nf8 {[%emt 0:00:00]} 17. hxg6 {[%emt 0:02:32]} fxg6 {[%emt 0:00:00]} 18. Rf4 {[%emt 0:24:27]} Qe3+ {[%emt 0:00:00]} 19. Kd1 {[%emt 0:00:11]} Bf5 {[%emt 0:00:00]} 20. Bd3 {[%emt 0:06:54]} e6 {[%emt 0:00:00]} 21. g4 {[%emt 0:01:40]} Rxb2 {[%emt 0:00:00]} 22. gxf5 {[%emt 0:00:21]} Reb8 {[%emt 0:00:00]} 23. Rb4 {[%emt 0:04:55]} Qxh6 {[%emt 0:00:00]} 24. Rxh6 {[%emt 0:00:45]} R2xb4 25. fxg6 {[%emt 0:02:43]} hxg6 {[%emt 0:00:00]} 26. Bxg6 {[%emt 0:01:11]} Kg7 {[%emt 0:00:00]} 0-1

[Event "18th Charleroi Open-A 2019"]
[Site "Charleroi"]
[Date "2019.07.29"]
[Round "3.28"]
[White "De Block, Fabio"]
[Black "Ramacker, Quinten"]
[Result "0-1"]
[ECO "D35"]
[WhiteElo "2039"]
[BlackElo "2006"]
[Annotator "NA"]
[PlyCount "102"]
[EventDate "2019.07.22"]
[EventType "swiss"]
[EventCountry "BEL"]
[SourceTitle "playchess.com"]
[Source "ChessBase"]
[SourceQuality "1"]
[TimeControl "40/5400+30:1800+30"]

1. d4 {[%emt 0:07:07]} Nf6 {[%emt 0:00:00]} 2. c4 {[%emt 0:00:39]} e6 {[%emt 0:00:00]} 3. Nc3 {[%emt 0:00:21]} d5 {[%emt 0:02:12]} 4. cxd5 {[%emt 0:00:44]} exd5 {[%emt 0:00:14]} 5. Qc2 {[%emt 0:00:20]} Be7 {[%emt 0:06:20]} 6. Nf3 {[%emt 0:07:06]} O-O {[%emt 0:01:51]} 7. g3 {[%emt 0:03:39]} Nc6 {[%emt 0:13:37]} 8. a3 {[%emt 0:07:11]} Re8 {[%emt 1:09:46]} 9. Bg2 {[%emt 0:02:47]} Ne4 {[%emt 0:00:00]} 10. O-O {[%emt 0:05:05]} Bf5 {[%emt 0:00:00]} 11. Qb3 {[%emt 0:06:40]} Na5 {[%emt 0:00:00]} 12. Qxd5 {[%emt 0:04:19]} Nxc3 {[%emt 0:00:00]} 13. Qxf5 {[%emt 0:00:05]} Nxe2+ {[%emt 0:00:00]} 14. Kh1 {[%emt 0:00:04]} Nb3 {[%emt 0:00:00]} 15. Ng5 {[%emt 0:07:21]} Bxg5 {[%emt 0:00:00]} 16. Bxg5 {[%emt 0:00:05]} Nexd4 {[%emt 0:00:00]} 17. Qg4 {[%emt 0:03:37]} Qd6 {[%emt 0:00:00]} 18. Rad1 {[%emt 0:03:56]} Qg6 {[%emt 0:00:00]} 19. h3 {[%emt 0:06:45]} c6 {[%emt 0:00:00]} 20. Be3 {[%emt 0:06:29]} Nf5 {[%emt 0:00:00]} 21. Qxg6 {[%emt 0:05:12]} hxg6 {[%emt 0:00:00]} 22. Rd7 {[%emt 0:05:52]} Rxe3 {[%emt 0:07:00]} 23. fxe3 {[%emt 0:07:06]} Nxg3+ {[%emt 0:00:00]} 24. Kg1 {[%emt 0:00:15]} Nxf1 {[%emt 0:00:00]} 25. Bxf1 {[%emt 0:01:23]} Nc5 {[%emt 0:00:00]} 26. Rc7 {[%emt 0:02:14]} Rb8 {[%emt 0:00:00]} 27. Bc4 {[%emt 0:02:46]} Ne6 {[%emt 0:00:00]} 28. Bxe6 {[%emt 0:00:12]} fxe6 {[%emt 0:00:00]} 29. Re7 {[%emt 0:00:05]} Kf8 {[%emt 0:00:00]} 30. Rxe6 {[%emt 0:00:11]} Re8 {[%emt 0:00:00]} 31. Rxe8+ {[%emt 0:02:51]} Kxe8 {[%emt 0:00:00]} 32. Kf2 {[%emt 0:00:03]} Ke7 {[%emt 0:00:00]} 33. Kf3 {[%emt 0:00:09]} Kf6 {[%emt 0:00:00]} 34. Kf4 {[%emt 0:01:18]} g5+ {[%emt 0:00:20]} 35. Ke4 {[%emt 0:00:11]} Ke6 {[%emt 0:00:10]} 36. b4 {[%emt 0:01:03]} b6 {[%emt 0:01:23]} 37. a4 {[%emt 0:01:29]} a6 {[%emt 0:01:31]} 38. Kd4 {[%emt 0:01:04]} Kf5 {[%emt 0:03:02]} 39. a5 {[%emt 0:00:22]} bxa5 {[%emt 0:00:13]} 40. bxa5 {[%emt 0:00:05]} g4 {[%emt 0:00:04]} 41. hxg4+ {[%emt 0:31:17]} Kxg4 {[%emt 0:30:03]} 42. Kc5 {[%emt 0:00:00]} g5 {[%emt 0:00:00]} 43. Kxc6 {[%emt 0:00:00]} Kf5 {[%emt 0:00:00]} 44. Kb6 {[%emt 0:00:00]} g4 {[%emt 0:00:00]} 45. Kxa6 {[%emt 0:00:00]} g3 {[%emt 0:00:00]} 46. Kb7 {[%emt 0:00:00]} g2 {[%emt 0:00:00]} 47. a6 {[%emt 0:00:00]} g1=Q {[%emt 0:00:00]} 48. a7 {[%emt 0:00:00]} Qb1+ {[%emt 0:00:00]} 49. Kc7 {[%emt 0:00:00]} Qc2+ {[%emt 0:00:00]} 50. Kb7 {[%emt 0:00:00]} Qb3+ {[%emt 0:00:00]} 51. Kc7 {[%emt 0:00:00]} Qc4+ {[%emt 0:00:00]} 0-1

[Event "18th Charleroi Open-A 2019"]
[Site "Charleroi"]
[Date "2019.07.29"]
[Round "3.29"]
[White "Verhalle, Elias"]
[Black "Sclacmender, Julien"]
[Result "0-1"]
[ECO "B22"]
[WhiteElo "1983"]
[BlackElo "2269"]
[Annotator "ChessBase"]
[PlyCount "72"]
[EventDate "2019.07.22"]
[EventType "swiss"]
[EventCountry "BEL"]
[SourceTitle "playchess.com"]
[Source "ChessBase"]
[SourceQuality "1"]
[TimeControl "40/5400+30:1800+30"]

1. e4 {[%emt 0:00:00]} c5 {[%emt 0:04:37]} 2. d4 {[%emt 0:00:00]} cxd4 {[%emt 0:00:03]} 3. c3 {[%emt 0:00:00]} Nf6 {[%emt 0:00:03]} 4. e5 {[%emt 0:00:00]} Nd5 {[%emt 0:00:02]} 5. Nf3 {[%emt 0:00:00]} Nc6 {[%emt 0:00:07]} 6. cxd4 {[%emt 0:00:00]} d6 {[%emt 0:00:08]} 7. Bc4 {[%emt 0:00:00]} Nb6 {[%emt 0:00:06]} 8. Bb5 {[%emt 0:00:00]} dxe5 {[%emt 0:00:09]} 9. Nxe5 {[%emt 0:00:02]} Bd7 {[%emt 0:00:03]} 10. Nxd7 {[%emt 0:00:04]} Qxd7 {[%emt 0:00:02]} 11. Nc3 {[%emt 0:00:04]} Rd8 {[%emt 0:05:28]} 12. Be3 {[%emt 0:00:54]} a6 {[%emt 0:09:10]} 13. Bxc6 {[%emt 0:02:19]} Qxc6 {[%emt 0:00:07]} 14. O-O {[%emt 0:01:25]} e6 {[%emt 0:09:39]} 15. Rc1 {[%emt 0:11:07]} Nd5 {[%emt 0:18:39]} 16. Qf3 {[%emt 0:51:12]} Be7 {[%emt 0:24:13]} 17. Nxd5 {[%emt 0:04:48]} Qxd5 {[%emt 0:00:02]} 18. Qxd5 {[%emt 0:00:06]} Rxd5 {[%emt 0:00:03]} 19. Rc7 {[%emt 0:00:04]} Rd7 {[%emt 0:00:23]} 20. Rfc1 {[%emt 0:00:19]} Bd6 {[%emt 0:01:49]} 21. Rc8+ {[%emt 0:00:19]} Rd8 {[%emt 0:00:06]} 22. d5 {[%emt 0:00:56]} Kd7 {[%emt 0:02:48]} 23. dxe6+ {[%emt 0:04:11]} Kxe6 {[%emt 0:00:02]} 24. Rxd8 {[%emt 0:00:29]} Rxd8 {[%emt 0:00:05]} 25. g3 {[%emt 0:07:43]} Be5 {[%emt 0:03:28]} 26. b3 {[%emt 0:00:54]} h5 {[%emt 0:04:06]} 27. h3 {[%emt 0:03:55]} Rd3 {[%emt 0:00:39]} 28. Re1 {[%emt 0:01:58]} Kd5 {[%emt 0:01:02]} 29. Re2 {[%emt 0:01:12]} b5 {[%emt 0:04:17]} 30. Kg2 {[%emt 0:02:28]} g6 {[%emt 0:04:40]} 31. Kf3 {[%emt 0:03:51]} Rc3 {[%emt 0:05:15]} 32. Rd2+ {[%emt 0:00:34]} Ke6 {[%emt 0:00:16]} 33. g4 {[%emt 0:02:53]} f5 {[%emt 0:01:39]} 34. gxh5 {[%emt 0:00:43]} gxh5 {[%emt 0:00:06]} 35. Kg2 {[%emt 0:00:28]} f4 {[%emt 0:00:15]} 36. Bd4 {[%emt 0:00:24]} f3+ {[%emt 0:00:05]} 0-1